bitfinex/quotes_BTCUSD_20250619
["timestamp","ask_amount","ask_price","bid_price","bid_amount"]
[1750334395540,0.94946864,104910.0,104890.0,0.24010955]
[1750334395541,0.20972325,104900.0,104890.0,0.24010955]
[1750334395767,0.93033333,104900.0,104890.0,0.24964307]
[1750334395994,0.92080063,104900.0,104890.0,0.24010955]
[1750334397523,0.00953352,104890.0,104880.0,0.28890022]
[1750334397736,0.7301436,104890.0,104880.0,0.44306022]
[1750334397926,0.7396773,104890.0,104880.0,0.45259419]
[1750334398138,0.7396773,104890.0,104880.0,0.29843419]
[1750334398535,0.74921091,104890.0,104880.0,0.28890022]
[1750334398740,0.7587447,104890.0,104880.0,0.28890022]
[1750334398936,0.94942064,104890.0,104880.0,0.28890022]
[1750334399373,0.94942064,104890.0,104880.0,0.28990022]
[1750334399628,0.94942064,104890.0,104880.0,0.29943438]
[1750334400288,0.94942064,104890.0,104880.0,0.25046022]
[1750334400503,0.94942064,104890.0,104880.0,0.40462022]
[1750334401403,0.93988712,104890.0,104880.0,0.25046022]
[1750334403221,0.37937199,104890.0,104880.0,0.26952844]
[1750334403451,0.36983811,104890.0,104880.0,0.26952844]
[1750334403643,0.37937145,104890.0,104880.0,0.26952844]
[1750334403919,0.38890497,104890.0,104880.0,0.26952844]
[1750334404371,0.39843858,104890.0,104880.0,0.26952844]
[1750334406053,0.38890497,104890.0,104880.0,0.26952844]
[1750334407154,0.39843858,104890.0,104880.0,0.26952844]
[1750334408738,0.38890497,104890.0,104880.0,0.26952844]
[1750334409642,0.39843858,104890.0,104880.0,0.42368844]
[1750334413071,0.38894497,104890.0,104880.0,0.42368844]
[1750334413505,0.37941145,104890.0,104880.0,0.42368844]
[1750334414157,0.36987811,104890.0,104880.0,0.42368844]
[1750334414375,0.39847831,104890.0,104880.0,0.42368844]
[1750334416426,0.76831705,104890.0,104880.0,0.42368844]
[1750334417769,0.39847831,104890.0,104880.0,0.42368844]
[1750334418220,0.39847822,104890.0,104880.0,0.42368844]
[1750334420519,0.40801183,104890.0,104880.0,0.42368844]
[1750334422280,0.39847822,104890.0,104880.0,0.42368844]
[1750334423825,0.40801183,104890.0,104880.0,0.42368844]
[1750334424508,0.39847822,104890.0,104880.0,0.42368844]
[1750334426554,0.03817318,104890.0,104880.0,0.42368844]
[1750334426776,0.39847822,104890.0,104880.0,0.42368844]
[1750334428594,0.3889447,104890.0,104880.0,0.42368844]
[1750334428830,0.39847822,104890.0,104880.0,0.42368844]
[1750334429046,0.3889447,104890.0,104880.0,0.42368844]
[1750334429723,0.39847822,104890.0,104880.0,0.42368844]
[1750334429959,0.3889447,104890.0,104880.0,0.42368844]
[1750334430184,0.38894479,104890.0,104880.0,0.42368844]
[1750334432181,0.38894479,104890.0,104880.0,0.26952844]
[1750334432402,0.38894479,104890.0,104880.0,0.42360844]
[1750334433986,0.37941136,104890.0,104880.0,0.42360844]
[1750334434427,0.38894479,104890.0,104880.0,0.42360844]
[1750334434643,0.37941136,104890.0,104880.0,0.42360844]
[1750334436043,0.3889447,104890.0,104880.0,0.42360844]
[1750334436493,0.37941136,104890.0,104880.0,0.42360844]
[1750334441231,4e-05,104890.0,104880.0,0.42360844]
[1750334441486,4e-05,104890.0,104880.0,0.95543735]
[1750334443143,4e-05,104890.0,104880.0,0.59513231]
[1750334444954,0.36034504,104890.0,104880.0,0.59513231]
[1750334446074,4e-05,104890.0,104880.0,0.59513231]
[1750334447902,4e-05,104890.0,104880.0,0.51888737]
[1750334449023,0.36034504,104890.0,104880.0,0.51888737]
[1750334455973,0.36034504,104890.0,104880.0,0.55828737]
[1750334458481,4e-05,104890.0,104880.0,0.55828737]
[1750334459123,0.19115092,104900.0,104890.0,0.25307623]
[1750334459349,0.19115092,104900.0,104890.0,0.34835516]
[1750334460180,0.20068299,104900.0,104890.0,0.34835516]
[1750334460716,0.19115092,104900.0,104890.0,0.34835516]
[1750334461916,0.55145596,104900.0,104890.0,0.34835516]
[1750334462464,0.36030504,104900.0,104890.0,0.34835516]
[1750334463549,0.00957116,104910.0,104900.0,0.25275532]
[1750334463759,0.3698762,104910.0,104900.0,0.40675532]
[1750334464381,0.74924401,104910.0,104900.0,0.37325532]
[1750334465870,0.75877571,104910.0,104900.0,0.37325532]
[1750334467042,0.7683075,104910.0,104900.0,0.21925532]
[1750334467242,0.7683075,104910.0,104900.0,0.37325532]
[1750334467686,0.75877571,104910.0,104900.0,0.37325532]
[1750334469286,0.78163258,104910.0,104900.0,0.37325532]
[1750334469543,0.79116437,104910.0,104900.0,0.37325532]
[1750334469770,0.78163258,104910.0,104900.0,0.37325532]
[1750334470003,0.77191021,104910.0,104900.0,0.37325532]
[1750334470713,0.77191021,104910.0,104900.0,0.39105532]
[1750334471887,0.41160508,104910.0,104900.0,0.40745532]
[1750334473480,0.42113669,104910.0,104900.0,0.40745532]
[1750334474013,0.40207365,104910.0,104900.0,0.40745532]
[1750334475361,0.77191021,104910.0,104900.0,0.40745532]
[1750334476066,0.77191021,104910.0,104900.0,0.39105532]
[1750334476870,0.77103229,104910.0,104900.0,0.39105532]
[1750334478269,0.78056399,104910.0,104900.0,0.39105532]
[1750334478485,0.79009587,104910.0,104900.0,0.2370555]
[1750334478701,0.78056399,104910.0,104900.0,0.40058775]
[1750334478912,0.79009578,104910.0,104900.0,0.40058775]
[1750334479586,0.79009587,104910.0,104900.0,0.40058775]
[1750334479800,0.78056399,104910.0,104900.0,0.40058775]
[1750334480163,0.79009578,104910.0,104900.0,0.40058775]
[1750334481516,0.78056399,104910.0,104900.0,0.40058775]
[1750334482064,0.79009578,104910.0,104900.0,0.40058775]
[1750334484127,0.0694857,104910.0,104900.0,0.40058775]
[1750334484336,0.76723891,104910.0,104900.0,0.40058775]
[1750334484551,0.79009578,104910.0,104900.0,0.40058775]
[1750334487169,0.78056399,104910.0,104900.0,0.40058775]
[1750334487393,0.7805639,104910.0,104900.0,0.40058775]
[1750334487924,0.79009569,104910.0,104900.0,0.40058775]
[1750334488217,0.7805639,104910.0,104900.0,0.40058775]
[1750334488434,0.7900956,104910.0,104900.0,0.40058775]
[1750334488642,0.7900956,104910.0,104900.0,0.41838775]
[1750334489539,0.79112482,104910.0,104900.0,0.41838775]
[1750334489864,0.78159303,104910.0,104900.0,0.41838775]
[1750334490477,0.79112482,104910.0,104900.0,0.41838775]
[1750334491134,0.78159303,104910.0,104900.0,0.41838775]
[1750334492431,0.79112482,104910.0,104900.0,0.41838775]
[1750334492662,0.79112545,104910.0,104900.0,0.41838775]
[1750334492846,0.78159357,104910.0,104900.0,0.41838775]
[1750334493106,0.78159357,104910.0,104900.0,0.40058775]
[1750334493324,0.79112545,104910.0,104900.0,0.40058775]
[1750334493761,0.79112545,104910.0,104900.0,0.3910555]
[1750334494279,0.79112545,104910.0,104900.0,0.40058775]
[1750334495192,0.77206178,104910.0,104900.0,0.40058775]
[1750334495689,0.78159357,104910.0,104900.0,0.41738775]
[1750334496806,0.79112545,104910.0,104900.0,0.4078555]
[1750334497673,0.79112545,104910.0,104900.0,0.41738775]
[1750334497894,0.79112545,104910.0,104900.0,0.4078555]
[1750334498118,0.79112545,104910.0,104900.0,0.41738775]
[1750334499905,0.78159357,104910.0,104900.0,0.41738775]
[1750334500388,0.77206178,104910.0,104900.0,0.41738775]
[1750334501047,0.40222504,104910.0,104900.0,0.41738775]
[1750334501704,0.41175683,104910.0,104900.0,0.41738775]
[1750334501920,0.40222504,104910.0,104900.0,0.41738775]
[1750334502136,0.20262807,104910.0,104900.0,0.41738775]
[1750334502354,0.21215986,104910.0,104900.0,0.41738775]
[1750334503036,0.23122335,104910.0,104900.0,0.4078555]
[1750334503471,0.60105991,104910.0,104900.0,0.41738775]
[1750334503681,0.59152803,104910.0,104900.0,0.41738775]
[1750334504200,0.60105991,104910.0,104900.0,0.4078555]
[1750334505312,0.60105991,104910.0,104900.0,0.24432316]
[1750334505555,0.22878766,104900.0,104890.0,0.23956955]
[1750334505770,0.93986567,104900.0,104890.0,0.38395594]
[1750334505983,0.92080072,104900.0,104890.0,0.35412964]
[1750334506450,0.92080072,104900.0,104890.0,0.34459594]
[1750334506674,0.92080072,104900.0,104890.0,0.35412973]
[1750334506896,0.91126784,104900.0,104890.0,0.15392]
[1750334507313,0.91126784,104900.0,104880.0,0.34037283]
[1750334507529,0.73967739,104890.0,104880.0,0.43834004]
[1750334507762,0.94942064,104890.0,104880.0,0.24506058]
[1750334507987,0.20976271,104880.0,104870.0,0.24438308]
[1750334508204,0.93037279,104880.0,104870.0,0.39830308]
[1750334508412,0.92083863,104880.0,104870.0,0.21694783]
[1750334508621,0.92083863,104880.0,104870.0,0.38040326]
[1750334508830,0.9113042,104880.0,104870.0,0.21694783]
[1750334509042,0.9113042,104880.0,104870.0,0.20741231]
[1750334509257,0.9113042,104880.0,104870.0,0.38040344]
[1750334509499,0.9113042,104880.0,104870.0,0.22648344]
[1750334509704,0.9113042,104880.0,104870.0,0.38040344]
[1750334510394,0.9113042,104880.0,104870.0,0.38993887]
[1750334512398,0.9113042,104880.0,104870.0,0.0167]
[1750334512599,0.9113042,104880.0,104870.0,0.18015561]
[1750334512812,0.9113042,104880.0,104870.0,0.02623561]
[1750334513454,0.9113042,104880.0,104870.0,0.21694792]
[1750334515180,0.9113042,104880.0,104870.0,0.02623561]
[1750334515643,0.9113042,104880.0,104870.0,0.22648344]
[1750334516908,0.9113042,104880.0,104870.0,0.23601887]
[1750334517133,0.9113042,104880.0,104870.0,0.24555421]
[1750334518019,0.92083881,104880.0,104870.0,0.25508946]
[1750334519342,0.92083881,104880.0,104870.0,0.25508901]
[1750334519796,0.92083881,104880.0,104870.0,0.24555385]
[1750334520105,0.92087881,104880.0,104870.0,0.24555385]
[1750334521760,0.92087881,104880.0,104870.0,0.26295385]
[1750334523521,0.92087881,104880.0,104870.0,0.27248901]
[1750334523743,0.93041315,104880.0,104870.0,0.27248901]
[1750334523971,0.93041315,104880.0,104870.0,0.27248855]
[1750334524190,0.93994785,104880.0,104870.0,0.27248855]
[1750334525242,0.74925373,104880.0,104870.0,0.27248809]
[1750334525652,0.93994785,104880.0,104870.0,0.20978326]
[1750334527716,0.20024783,104870.0,104860.0,0.22741291]
[1750334527939,0.92085791,104870.0,104860.0,0.22868514]
[1750334528175,0.93039352,104870.0,104860.0,0.26665754]
[1750334528624,0.37937581,104870.0,104860.0,0.27619342]
[1750334528835,0.38891087,104870.0,104860.0,0.26665754]
[1750334529486,0.38891087,104870.0,104860.0,0.26865754]
[1750334529688,0.57962318,104870.0,104860.0,0.26865754]
[1750334529905,0.57962318,104870.0,104860.0,0.25912157]
[1750334530576,0.94946383,104870.0,104860.0,0.26965745]
[1750334530799,0.38891078,104870.0,104860.0,0.26965745]
[1750334533077,0.38882679,104870.0,104860.0,0.26965745]
[1750334533327,0.39836222,104870.0,104860.0,0.26965745]
[1750334534691,0.39836213,104870.0,104860.0,0.26965745]
[1750334534938,0.38882679,104870.0,104860.0,0.26965745]
[1750334535784,0.39836222,104870.0,104860.0,0.26965745]
[1750334538500,0.38882679,104870.0,104860.0,0.26965745]
[1750334538716,0.38882633,104870.0,104860.0,0.26965745]
[1750334538919,0.39836167,104870.0,104860.0,0.26965745]
[1750334543621,0.38882633,104870.0,104860.0,0.26965745]
[1750334543851,0.39836158,104870.0,104860.0,0.26965745]
[1750334544094,0.40789701,104870.0,104860.0,0.26965745]
[1750334544535,0.39836158,104870.0,104860.0,0.26965745]
[1750334544771,0.40789692,104870.0,104860.0,0.26965745]
[1750334545000,0.41743244,104870.0,104860.0,0.42361745]
[1750334545216,0.77773748,104870.0,104860.0,0.42361745]
[1750334545874,0.76820196,104870.0,104860.0,0.42361745]
[1750334546391,0.77773739,104870.0,104860.0,0.42361745]
[1750334546826,0.76820196,104870.0,104860.0,0.42361745]
[1750334547484,0.77773739,104870.0,104860.0,0.42361745]
[1750334551295,0.77773812,104870.0,104860.0,0.42361745]
[1750334552572,0.41743308,104870.0,104860.0,0.42361745]
[1750334553474,0.40789756,104870.0,104860.0,0.42361745]
[1750334553940,0.95891537,104870.0,104860.0,0.36657291]
[1750334554191,0.95891537,104870.0,104860.0,0.38564559]
[1750334554408,0.94938012,104870.0,104860.0,0.41368184]
[1750334554871,0.94938012,104870.0,104860.0,0.40414568]
[1750334555777,1.0255792,104870.0,104860.0,0.0031]
[1750334556005,1.46252774,104870.0,104860.0,0.0031]
[1750334556224,1.1203227,104870.0,104860.0,0.0031]
[1750334556806,1.1022227,104870.0,104860.0,0.0031]
[1750334556898,1.1022227,104870.0,104860.0,0.0011]
[1750334557146,1.06672385,104870.0,104860.0,0.0001]
[1750334557671,1.08342385,104870.0,104860.0,0.0001]
[1750334560620,1.06672385,104870.0,104860.0,0.0001]
[1750334560823,1.44472889,104870.0,104860.0,0.0001]
[1750334561025,1.08442385,104870.0,104860.0,0.0001]
[1750334566556,0.38646392,104870.0,104860.0,0.0349]
[1750334566726,1.107074,104870.0,104860.0,0.0349]
[1750334566930,1.110074,104870.0,104860.0,0.0349]
[1750334567363,1.110074,104870.0,104860.0,0.0171]
[1750334573329,1.110074,104870.0,104860.0,0.0349]
[1750334573764,1.138731,104870.0,104860.0,0.0171]
[1750334573984,1.23400085,104870.0,104860.0,0.0001]
[1750334575080,1.32927978,104870.0,104860.0,0.0001]
[1750334575288,0.20026683,104860.0,104850.0,0.00081744]
[1750334575520,6.7068145,104860.0,104850.0,0.00081744]
[1750334575777,6.79682619,104860.0,104850.0,0.00081744]
[1750334576242,6.76132734,104860.0,104850.0,0.00081744]
[1750334576463,6.73287538,104860.0,104850.0,0.00081744]
[1750334576681,6.71567538,104860.0,104850.0,0.00081744]
[1750334577172,6.69997538,104860.0,104850.0,0.00081744]
[1750334577639,6.72863538,104860.0,104850.0,0.00081744]
[1750334578955,6.36907874,104860.0,104850.0,0.00081744]
[1750334579398,5.64772026,104860.0,104850.0,0.00081744]
[1750334579642,6.36907874,104860.0,104850.0,0.00081744]
[1750334580566,0.62298697,104860.0,104850.0,0.24554053]
[1750334580788,0.77734697,104860.0,104850.0,0.25386007]
[1750334581011,0.77734697,104860.0,104850.0,0.26339732]
[1750334581223,0.76055473,104860.0,104850.0,0.27293448]
[1750334581435,1.10564531,104860.0,104850.0,0.27293448]
[1750334581655,1.10564531,104860.0,104850.0,0.28247155]
[1750334582295,0.59060607,104860.0,104850.0,0.28247155]
[1750334582506,0.74500607,104860.0,104850.0,0.29200852]
[1750334583450,0.74500607,104860.0,104850.0,0.29200806]
[1750334583896,0.39987531,104860.0,104850.0,0.29200806]
[1750334584121,0.5351511,104860.0,104850.0,0.2920076]
[1750334584344,0.39028735,104860.0,104850.0,0.2920076]
[1750334584573,0.52565503,104860.0,104850.0,0.2920076]
[1750334584827,0.5351911,104860.0,104850.0,0.2920076]
[1750334585260,0.5351911,104860.0,104850.0,0.27415099]
[1750334585479,0.5351911,104860.0,104850.0,0.2920086]
[1750334586165,0.3807511,104860.0,104850.0,0.2920086]
[1750334587054,0.3807511,104860.0,104850.0,0.29200984]
[1750334588426,0.3807911,104860.0,104850.0,0.29200984]
[1750334588617,0.37125503,104860.0,104850.0,0.29201046]
[1750334588879,0.380791,104860.0,104850.0,0.29201046]
[1750334589101,0.39986341,104860.0,104850.0,0.29201046]
[1750334589327,0.39986341,104860.0,104850.0,0.27415099]
[1750334591170,0.39032707,104860.0,104850.0,0.27415099]
[1750334591604,0.39986332,104860.0,104850.0,0.27415099]
[1750334596822,0.39032707,104860.0,104850.0,0.27415099]
[1750334597068,0.37125494,104860.0,104850.0,0.27415099]
[1750334598045,0.3903267,104860.0,104850.0,0.27415099]
[1750334598258,0.38079073,104860.0,104850.0,0.27415099]
[1750334598746,0.02011149,104860.0,104850.0,0.27415099]
[1750334598959,0.74122357,104860.0,104850.0,0.27415099]
[1750334601431,0.0105757,104860.0,104850.0,0.27415099]
[1750334601657,0.72215208,104860.0,104850.0,0.27415099]
[1750334601901,0.73168787,104860.0,104850.0,0.27415099]
[1750334602087,0.73168778,104860.0,104850.0,0.27415099]
[1750334602799,0.74122357,104860.0,104850.0,0.27415099]
[1750334603876,0.72215208,104860.0,104850.0,0.27415099]
[1750334604310,0.73168787,104860.0,104850.0,0.27415099]
[1750334605448,0.74122375,104860.0,104850.0,0.27415099]
[1750334605898,0.75075982,104860.0,104850.0,0.27415099]
[1750334606367,0.74122375,104860.0,104850.0,0.27415099]
[1750334606816,0.75075982,104860.0,104850.0,0.27415099]
[1750334607030,0.75075972,104860.0,104850.0,0.27415099]
[1750334607356,0.74122375,104860.0,104850.0,0.27415099]
[1750334607576,0.73168787,104860.0,104850.0,0.27415099]
[1750334608135,0.74122384,104860.0,104850.0,0.27415099]
[1750334609143,0.73168787,104860.0,104850.0,0.27415099]
[1750334609355,0.74122375,104860.0,104850.0,0.27415099]
[1750334609770,0.75075972,104860.0,104850.0,0.27415099]
[1750334610672,0.73168787,104860.0,104850.0,0.27415099]
[1750334610896,0.72215208,104860.0,104850.0,0.27415099]
[1750334614798,0.73168778,104860.0,104850.0,0.27415099]
[1750334615501,0.74122366,104860.0,104850.0,0.27415099]
[1750334615715,0.73168778,104860.0,104850.0,0.27415099]
[1750334616014,0.74122357,104860.0,104850.0,0.27415099]
[1750334619403,0.75075945,104860.0,104850.0,0.27415099]
[1750334620057,0.74122357,104860.0,104850.0,0.27415099]
[1750334623114,0.75075945,104860.0,104850.0,0.27415099]
[1750334623363,0.74122357,104860.0,104850.0,0.27415099]
[1750334623550,0.73168778,104860.0,104850.0,0.27415099]
[1750334623881,0.74122366,104860.0,104850.0,0.27415099]
[1750334624093,0.73168778,104860.0,104850.0,0.27415099]
[1750334624487,0.74122366,104860.0,104850.0,0.27415099]
[1750334624733,0.73168778,104860.0,104850.0,0.27415099]
[1750334625249,0.74122366,104860.0,104850.0,0.27415099]
[1750334625459,0.37113174,104860.0,104850.0,0.27415099]
[1750334625678,0.0105757,104860.0,104850.0,0.27415099]
[1750334625898,0.74122366,104860.0,104850.0,0.27415099]
[1750334626116,0.73168778,104860.0,104850.0,0.27415099]
[1750334626747,0.74122366,104860.0,104850.0,0.27415099]
[1750334627006,0.73168778,104860.0,104850.0,0.27415099]
[1750334627889,0.74122366,104860.0,104850.0,0.27415099]
[1750334629175,0.75075963,104860.0,104850.0,0.27415099]
[1750334629808,0.76029579,104860.0,104850.0,0.27415099]
[1750334630221,0.76983213,104860.0,104850.0,0.27415099]
[1750334630662,0.76983204,104860.0,104850.0,0.27415099]
[1750334634332,0.76029579,104860.0,104850.0,0.27415099]
[1750334636854,0.75075963,104860.0,104850.0,0.27415099]
[1750334638226,0.74122366,104860.0,104850.0,0.27415099]
[1750334638865,0.75075973,104860.0,104850.0,0.27415099]
[1750334639106,0.75075963,104860.0,104850.0,0.27415099]
[1750334640251,0.7602957,104860.0,104850.0,0.27415099]
[1750334649698,0.75075963,104860.0,104850.0,0.27415099]
[1750334650364,0.74122366,104860.0,104850.0,0.27415099]
[1750334651511,0.75075973,104860.0,104850.0,0.27415099]
[1750334651771,1.29251102,104860.0,104850.0,0.00081744]
[1750334652007,1.51360149,104860.0,104850.0,0.00081744]
[1750334652228,1.47247714,104860.0,104850.0,0.00081744]
[1750334654603,1.56775607,104860.0,104850.0,0.00081744]
[1750334655532,1.63202642,104860.0,104850.0,0.00081744]
[1750334655754,1.60348108,104860.0,104850.0,0.00081744]
[1750334656656,1.75808108,104860.0,104850.0,0.00081744]
[1750334659979,6.80808108,104860.0,104850.0,0.00081744]
[1750334660437,6.77235607,104860.0,104850.0,0.00081744]
[1750334663901,7.1138397,104860.0,104840.0,0.016021]
[1750334664108,0.01907913,104820.0,104810.0,0.18210879]
[1750334664320,0.74973119,104820.0,104810.0,0.19164968]
[1750334664859,0.73065151,104820.0,104810.0,0.19164968]
[1750334665794,0.74019112,104820.0,104810.0,0.19164968]
[1750334666470,0.74019112,104820.0,104810.0,0.19464968]
[1750334666942,0.74973082,104820.0,104810.0,0.19464968]
[1750334667195,0.74019112,104820.0,104810.0,0.21264968]
[1750334667431,0.8547596,104820.0,104810.0,0.21264968]
[1750334668096,0.74994995,104820.0,104810.0,0.21264968]
[1750334669015,0.75948975,104820.0,104810.0,0.21264968]
[1750334669238,0.74041034,104820.0,104810.0,0.21264968]
[1750334669464,0.74994986,104820.0,104810.0,0.21264968]
[1750334669909,0.74041034,104820.0,104810.0,0.21264968]
[1750334670134,0.74994995,104820.0,104810.0,0.17316968]
[1750334670599,0.74041034,104820.0,104810.0,0.17316968]
[1750334671025,0.74994995,104820.0,104810.0,0.17316968]
[1750334671468,0.01929826,104820.0,104810.0,0.17316968]
[1750334671713,0.74994995,104820.0,104810.0,0.17316968]
[1750334671930,0.74041034,104820.0,104810.0,0.17316968]
[1750334672798,0.74994995,104820.0,104810.0,0.17316968]
[1750334673253,0.74041034,104820.0,104810.0,0.17316968]
[1750334673946,0.74994995,104820.0,104810.0,0.17316968]
[1750334674184,0.73087091,104820.0,104810.0,0.17316968]
[1750334674449,0.74041034,104820.0,104810.0,0.17316968]
[1750334674911,0.73087091,104820.0,104810.0,0.17316968]
[1750334675129,0.72111208,104820.0,104810.0,0.17316968]
[1750334676019,0.74019094,104820.0,104810.0,0.17316968]
[1750334676240,0.73065142,104820.0,104810.0,0.17316968]
[1750334676684,0.74019094,104820.0,104810.0,0.17316968]
[1750334676952,0.00953934,104820.0,104810.0,0.17316968]
[1750334677173,0.73065142,104820.0,104810.0,0.17316968]
[1750334677392,0.74012519,104820.0,104810.0,0.17316968]
[1750334677619,0.73058585,104820.0,104810.0,0.17316968]
[1750334683015,0.00947377,104820.0,104810.0,0.26844861]
[1750334683290,0.66691619,104850.0,104840.0,0.23498081]
[1750334683291,0.4905,104850.0,104840.0,0.23498081]
[1750334683500,0.37013183,104860.0,104850.0,0.21935988]
[1750334683729,0.55730681,104860.0,104850.0,0.21935988]
[1750334683957,0.63916417,104860.0,104850.0,0.21935988]
[1750334684196,0.64870042,104860.0,104850.0,0.21935988]
[1750334684406,1.23400527,104860.0,104850.0,0.21935988]
[1750334684693,1.22446875,104860.0,104850.0,0.21935988]
[1750334684916,1.37934875,104860.0,104850.0,0.21935988]
[1750334685132,1.37934875,104860.0,104850.0,0.23595988]
[1750334685133,1.20539635,104860.0,104850.0,0.23595988]
[1750334685381,1.19586028,104860.0,104850.0,0.23595988]
[1750334685613,1.36027625,104860.0,104850.0,0.23595988]
[1750334685843,1.19586028,104860.0,104850.0,0.23595988]
[1750334686029,1.36523625,104860.0,104850.0,0.23595988]
[1750334686249,1.20086028,104860.0,104850.0,0.23595988]
[1750334686503,1.18632449,104860.0,104850.0,0.23595988]
[1750334686725,0.99114415,104860.0,104850.0,0.25175988]
[1750334686936,0.63062926,104860.0,104850.0,0.25175988]
[1750334687153,0.53535941,104860.0,104850.0,0.25175988]
[1750334687378,0.52582371,104860.0,104850.0,0.25175988]
[1750334687596,0.37398371,104860.0,104850.0,0.25175988]
[1750334687816,0.5383595,104860.0,104850.0,0.25175988]
[1750334688032,0.47878935,104860.0,104850.0,0.25175988]
[1750334688249,0.62405356,104860.0,104850.0,0.25175988]
[1750334688471,0.37398371,104860.0,104850.0,0.25175988]
[1750334688678,0.5353595,104860.0,104850.0,0.25175988]
[1750334688894,0.8864209,104860.0,104850.0,0.25175988]
[1750334689131,0.8874209,104860.0,104850.0,0.25175988]
[1750334690451,0.89695669,104860.0,104850.0,0.25175988]
[1750334693889,0.90649266,104860.0,104850.0,0.25175988]
[1750334694311,0.89695669,104860.0,104850.0,0.25175988]
[1750334694858,0.91602891,104860.0,104850.0,0.25175988]
[1750334697247,1.03037162,104860.0,104850.0,0.23595988]
[1750334697482,0.92471525,104860.0,104850.0,0.21935988]
[1750334698125,0.20352087,104860.0,104850.0,0.21935988]
[1750334698342,0.91517873,104860.0,104850.0,0.23555988]
[1750334698551,0.92471516,104860.0,104850.0,0.23555988]
[1750334698968,0.92471589,104860.0,104850.0,0.23555988]
[1750334700902,0.93439939,104860.0,104850.0,0.23555988]
[1750334701108,0.92486287,104860.0,104850.0,0.23555988]
[1750334703273,0.91532644,104860.0,104850.0,0.23555988]
[1750334703481,0.91532644,104860.0,104850.0,0.25235988]
[1750334704351,0.91532644,104860.0,104850.0,0.23555988]
[1750334707014,1.27599602,104860.0,104850.0,0.25195988]
[1750334708401,1.26645968,104860.0,104850.0,0.25195988]
[1750334709102,1.27599602,104860.0,104850.0,0.25195988]
[1750334709339,1.27599529,104860.0,104850.0,0.25195988]
[1750334710469,0.91537397,104860.0,104850.0,0.25195988]
[1750334712053,1.27599529,104860.0,104850.0,0.25195988]
[1750334712947,1.29882155,104860.0,104850.0,0.25195988]
[1750334714080,1.3083578,104860.0,104850.0,0.25195988]
[1750334714957,1.29882155,104860.0,104850.0,0.25195988]
[1750334722064,1.30835789,104860.0,104850.0,0.25195988]
[1750334722280,1.29882155,104860.0,104850.0,0.25195988]
[1750334722503,1.30835789,104860.0,104850.0,0.25195988]
[1750334722720,1.3083578,104860.0,104850.0,0.25195988]
[1750334723615,1.2892853,104860.0,104850.0,0.25195988]
[1750334723832,1.29882137,104860.0,104850.0,0.25195988]
[1750334724936,1.30835753,104860.0,104850.0,0.25195988]
[1750334725844,1.31789387,104860.0,104850.0,0.25195988]
[1750334727170,1.31789387,104860.0,104850.0,0.23555988]
[1750334727386,1.3178946,104860.0,104850.0,0.23555988]
[1750334727825,1.49908921,104860.0,104850.0,0.22602309]
[1750334728045,1.49908921,104860.0,104850.0,0.23555997]
[1750334728259,1.59435906,104860.0,104850.0,0.21935997]
[1750334728483,1.43951906,104860.0,104850.0,0.21935997]
[1750334728690,1.59379906,104860.0,104850.0,0.21935997]
[1750334729125,1.59379906,104860.0,104850.0,0.20982309]
[1750334729347,1.58426299,104860.0,104850.0,0.20982309]
[1750334730045,1.58426299,104860.0,104850.0,0.21936006]
[1750334734482,1.58426299,104860.0,104850.0,0.23606006]
[1750334734704,1.58426299,104860.0,104850.0,0.21936006]
[1750334735153,1.48899314,104860.0,104850.0,0.21936006]
[1750334735382,1.49852966,104860.0,104850.0,0.22582309]
[1750334735608,0.4166657,104860.0,104850.0,0.22582309]
[1750334735827,1.49852966,104860.0,104850.0,0.23536006]
[1750334738513,1.4889935,104860.0,104850.0,0.23536006]
[1750334739245,1.58426335,104860.0,104850.0,0.23536006]
[1750334739460,1.58426335,104860.0,104850.0,0.22582309]
[1750334739942,1.57472701,104860.0,104850.0,0.22582309]
[1750334740694,1.57472701,104860.0,104850.0,0.23536006]
[1750334741444,1.57472701,104860.0,104850.0,0.24489694]
[1750334741673,1.47945716,104860.0,104850.0,0.24489694]
[1750334742121,1.47945716,104860.0,104850.0,0.26159694]
[1750334742342,1.47945716,104860.0,104850.0,0.25206006]
[1750334742613,1.47945716,104860.0,104850.0,0.23536006]
[1750334743923,1.47945716,104860.0,104850.0,0.25206006]
[1750334745585,1.48962479,104860.0,104850.0,0.25206006]
[1750334745808,1.48962479,104860.0,104850.0,0.24252309]
[1750334747562,1.48962479,104860.0,104850.0,0.24252327]
[1750334748014,1.48962479,104860.0,104850.0,0.25206043]
[1750334748594,1.48008836,104860.0,104850.0,0.25206043]
[1750334749565,1.48008836,104860.0,104850.0,0.23536043]
[1750334750051,1.48008836,104860.0,104850.0,0.22582327]
[1750334750265,1.48008836,104860.0,104850.0,0.016]
[1750334750266,1.47055184,104860.0,104850.0,0.016]
[1750334750469,1.47055184,104860.0,104850.0,0.02553743]
[1750334751719,1.47055184,104860.0,104850.0,0.016]
[1750334752059,1.47055184,104860.0,104840.0,0.26121824]
[1750334752278,0.73077989,104850.0,104840.0,0.26121824]
[1750334753007,0.72124264,104850.0,104840.0,0.26121824]
[1750334753207,0.57057183,104860.0,104850.0,0.20982327]
[1750334753412,1.47889771,104860.0,104850.0,0.24162327]
[1750334754177,1.47889771,104860.0,104850.0,0.25116034]
[1750334754386,1.48093771,104860.0,104850.0,0.26069731]
[1750334754588,1.48093771,104860.0,104850.0,0.25116034]
[1750334754803,1.57820756,104860.0,104850.0,0.25116034]
[1750334755010,1.57920756,104860.0,104850.0,0.25116034]
[1750334755548,1.57820756,104860.0,104850.0,0.25116034]
[1750334755768,1.32817771,104860.0,104850.0,0.25116034]
[1750334755982,1.48389771,104860.0,104850.0,0.25116034]
[1750334756399,1.48389771,104860.0,104850.0,0.24162327]
[1750334756871,0.40203375,104860.0,104850.0,0.25116034]
[1750334757074,1.48389771,104860.0,104850.0,0.25116034]
[1750334757282,1.48389771,104860.0,104850.0,0.26069731]
[1750334757494,1.25287832,104860.0,104850.0,0.26069731]
[1750334757714,1.44360881,104860.0,104850.0,0.26069731]
[1750334758517,1.45314533,104860.0,104850.0,0.26069731]
[1750334758750,1.45314533,104860.0,104850.0,0.25116034]
[1750334759317,1.79314533,104860.0,104850.0,0.23456034]
[1750334759548,1.79314533,104860.0,104850.0,0.24409731]
[1750334759779,1.81038833,104860.0,104850.0,0.24409731]
[1750334760518,1.81038833,104860.0,104850.0,0.23456034]
[1750334760733,1.90565818,104860.0,104850.0,0.22502327]
[1750334761087,1.89612193,104860.0,104850.0,0.22502327]
[1750334762068,1.89612193,104860.0,104850.0,0.22502345]
[1750334762288,1.88658541,104860.0,104850.0,0.22502345]
[1750334763214,0.34,104840.0,104830.0,0.23272406]
[1750334763421,1.43140203,104840.0,104830.0,0.25180183]
[1750334763640,1.08985721,104840.0,104830.0,0.26134099]
[1750334763864,1.099395,104840.0,104830.0,0.26134118]
[1750334764341,1.08031795,104840.0,104830.0,0.27087942]
[1750334764573,1.09939418,104840.0,104830.0,0.27487942]
[1750334765039,1.08985602,104840.0,104830.0,0.27487942]
[1750334765279,1.28062363,104840.0,104830.0,0.24626313]
[1750334765502,1.28062363,104840.0,104830.0,0.25580202]